bitfinex/quotes_SOLUSD_20241226
["timestamp","ask_amount","ask_price","bid_price","bid_amount"]
[1735195812948,10.19830206,194.15,194.1,30.92]
[1735195813129,10.19830206,194.14,194.1,30.92]
[1735195813448,10.19830206,194.11,194.06,1.6234]
[1735195813861,10.19830206,194.11,194.07,0.12549]
[1735195815863,10.19830206,194.09,194.06,20.0]
[1735195816055,10.19830206,194.08,194.06,20.0]
[1735195816250,10.19830206,194.08,194.03,30.92]
[1735195816860,10.19830206,194.07,194.04,0.12549]
[1735195817067,10.19830206,194.06,194.04,0.12549]
[1735195817398,10.19830206,194.07,194.01,0.12549]
[1735195817868,10.19830206,194.05,194.0,1.5119]
[1735195818069,10.19830206,194.02,193.96,31.692919]
[1735195818364,10.19830206,194.02,193.96,30.92]
[1735195818574,10.19830206,194.02,193.97,0.12549]
[1735195819149,10.19830206,194.01,193.95,1.5119]
[1735195819353,42.84524399,194.1,193.95,1.5119]
[1735195819354,10.19830206,194.0,193.95,1.5119]
[1735195819573,10.19830206,194.01,193.96,0.12549]
[1735195819866,10.19830206,194.04,193.97,10.19830206]
[1735195820272,10.19830206,194.03,193.97,0.12549]
[1735195820643,40.79320824,194.1,194.0,20.12549]
[1735195820842,10.19830206,194.05,194.02,0.12549]
[1735195821142,10.19830206,194.03,194.0,20.0]
[1735195821357,10.19830206,194.01,193.97,20.0]
[1735195821553,10.19830206,194.0,193.97,20.0]
[1735195822378,10.19830206,194.01,193.98,0.12549]
[1735195822873,40.79320824,194.1,194.0,0.12549]
[1735195822874,10.19830206,194.03,194.0,0.12549]
[1735195823048,10.19830206,194.04,194.0,0.12549]
[1735195823249,10.19830206,194.04,194.0,20.12549]
[1735195825078,10.19830206,194.03,194.0,0.12549]
[1735195827479,10.19830206,194.03,194.02,0.12549]
[1735195828875,10.19830206,194.03,194.02,20.12549]
[1735195829673,10.19830206,194.03,194.02,0.12549]
[1735195833179,10.19830206,194.03,193.97,20.0]
[1735195833382,10.19830206,193.99,193.97,20.0]
[1735195833568,10.19830206,193.99,193.98,0.12549]
[1735195834186,10.19830206,194.0,193.98,0.12549]
[1735195834594,10.19830206,194.01,193.98,0.12549]
[1735195837998,10.19830206,194.01,194.0,20.0]
[1735195838792,10.19830206,194.01,193.99,0.12549]
[1735195839270,8.83845642,194.01,193.99,0.12549]
[1735195839684,12.8807,194.09,193.99,0.12549]
[1735195839916,10.19830206,194.03,193.99,20.12549]
[1735195841395,10.19830206,194.02,193.99,20.12549]
[1735195841692,10.19830206,194.02,193.95,11.71020206]
[1735195841869,10.19830206,194.02,193.94,0.77315938]
[1735195841870,10.19830206,193.97,193.94,20.0]
[1735195842072,10.19830206,193.97,193.95,0.12549]
[1735195842270,6.272,194.05,193.95,0.12549]
[1735195842499,10.19830206,193.99,193.95,0.12549]
[1735195842998,6.272,194.05,193.95,0.12549]
[1735195843173,10.19830206,193.99,193.95,0.12549]
[1735195843373,10.19830206,193.96,193.91,37.5792]
[1735195843883,10.19830206,193.96,193.92,0.12549]
[1735195844699,10.19830206,193.96,193.95,0.12549]
[1735195846180,10.19830206,193.99,193.95,0.12549]
[1735195847203,6.272,194.05,193.97,0.12549]
[1735195847382,10.19830206,194.02,194.0,0.12549]
[1735195847580,10.19830206,194.02,194.0,20.12549]
[1735195848004,10.19830206,194.01,194.0,20.12549]
[1735195848197,10.19830206,194.01,193.99,0.12549]
[1735195848375,10.19830206,194.01,194.0,20.0]
[1735195848582,10.19830206,194.01,194.0,20.12549]
[1735195850722,10.19830206,194.01,194.0,0.12549]
[1735195851009,10.19830206,194.02,194.01,0.12549]
[1735195851515,10.19830206,194.02,193.99,0.12549]
[1735195851805,6.272,194.09,194.01,0.12549]
[1735195852017,10.19830206,194.04,194.01,0.12549]
[1735195852177,10.19830206,194.05,194.01,0.12549]
[1735195852373,10.19830206,194.05,194.01,20.12549]
[1735195853206,10.19830206,194.04,194.01,20.12549]
[1735195853416,40.79320824,194.1,194.03,0.12549]
[1735195853614,10.19830206,194.05,194.03,0.12549]
[1735195853983,44.36547411,194.14,194.03,0.12549]
[1735195854182,10.19830206,194.06,194.03,0.12549]
[1735195856020,10.19830206,194.07,194.03,20.12549]
[1735195856184,10.19830206,194.06,194.05,20.0]
[1735195856708,10.19830206,194.06,193.98,1.5207]
[1735195856709,10.19830206,194.06,193.99,20.12549]
[1735195856889,10.19830206,194.04,193.99,20.12549]
[1735195857613,10.19830206,194.0,193.93,14.4818]
[1735195857815,10.19830206,193.99,193.93,14.4818]
[1735195858019,10.19830206,193.99,193.93,1.5907]
[1735195859018,10.19830206,193.98,193.94,0.12549]
[1735195861212,10.19830206,193.98,193.94,20.12549]
[1735195861388,6.5442,194.07,193.96,0.12549]
[1735195861589,10.19830206,194.0,193.96,0.12549]
[1735195861927,10.19830206,194.01,193.98,0.12549]
[1735195862099,10.19830206,194.02,194.0,0.12549]
[1735195862515,10.19830206,194.03,194.0,20.12549]
[1735195862906,10.19830206,194.04,194.0,20.12549]
[1735195863393,10.19830206,194.05,194.0,20.12549]
[1735195863605,10.19830206,194.05,194.03,0.12549]
[1735195863784,6.5442,194.12,194.03,0.12549]
[1735195863988,10.19830206,194.07,194.03,0.12549]
[1735195864188,10.19830206,194.07,194.03,20.12549]
[1735195864784,6.5442,194.12,194.03,20.12549]
[1735195864785,1.5602,194.13,194.05,0.12549]
[1735195865003,6.5442,194.18,194.07,0.12549]
[1735195865202,1.5602,194.19,194.09,20.12549]
[1735195865427,10.19830206,194.14,194.09,20.12549]
[1735195865612,10.19830206,194.13,194.09,20.12549]
[1735195866744,10.19830206,194.14,194.09,20.12549]
[1735195866889,10.19830206,194.14,194.11,0.12549]
[1735195867211,10.19830206,194.14,194.1,0.12549]
[1735195867592,10.19830206,194.13,194.1,0.12549]
[1735195868594,10.19830206,194.12,194.1,0.12549]
[1735195868920,1.5602,194.19,194.03,31.69262453]
[1735195868921,10.19830206,194.11,194.03,31.69262453]
[1735195869134,12.8746,194.18,194.03,31.69262453]
[1735195869135,10.19830206,194.09,194.03,31.69262453]
[1735195869494,1.5602,194.19,194.04,0.12549]
[1735195869734,10.19830206,194.16,194.1,0.12549]
[1735195870019,6.5442,194.23,194.1,0.12549]
[1735195870020,10.19830206,194.17,194.11,1.5907]
[1735195870326,10.19830206,194.17,194.12,0.12549]
[1735195870705,10.19830206,194.17,194.14,0.12549]
[1735195871890,10.19830206,194.16,194.14,0.12549]
[1735195872103,10.19830206,194.16,194.12,20.12549]
[1735195873427,10.19830206,194.17,194.14,0.12549]
[1735195874525,10.19830206,194.17,194.12,0.12549]
[1735195874693,10.19830206,194.17,194.14,0.12549]
[1735195876322,10.19830206,194.16,194.12,20.0]
[1735195876517,10.19830206,194.16,194.13,0.12549]
[1735195879634,10.19830206,194.17,194.14,0.12549]
[1735195879798,10.19830206,194.18,194.14,0.12549]
[1735195881432,6.5442,194.23,194.12,0.12549]
[1735195881747,10.19830206,194.18,194.12,0.89789597]
[1735195881948,10.19830206,194.19,194.17,0.12549]
[1735195882231,10.19830206,194.2,194.17,0.12549]
[1735195882546,10.19830206,194.19,194.17,0.12549]
[1735195884234,10.19830206,194.19,194.14,20.0]
[1735195884719,10.19830206,194.19,194.15,0.12549]
[1735195886449,10.19830206,194.21,194.17,0.12549]
[1735195886627,6.0372,194.28,194.18,43.776884]
[1735195886832,10.19830206,194.25,194.22,0.12549]
[1735195887034,10.19830206,194.26,194.22,20.12549]
[1735195887439,10.19830206,194.25,194.22,20.12549]
[1735195887740,10.19830206,194.25,194.22,0.12549]
[1735195890947,10.19830206,194.24,194.22,0.12549]
[1735195891154,10.19830206,194.23,194.18,20.0]
[1735195891439,10.19830206,194.22,194.18,20.0]
[1735195891951,10.19830206,194.22,194.19,0.12549]
[1735195892841,10.19830206,194.23,194.19,0.12549]
[1735195893048,10.19830206,194.22,194.19,0.12549]
[1735195893538,10.19830206,194.21,194.19,0.12549]
[1735195893741,10.19830206,194.21,194.17,20.0]
[1735195893943,10.19830206,194.21,194.18,0.12549]
[1735195894154,10.19830206,194.19,194.11,38.86]
[1735195894339,10.19830206,194.17,194.11,1.5907]
[1735195894954,10.19830206,194.18,194.11,1.5907]
[1735195895249,10.19830206,194.18,194.12,0.12549]
[1735195895746,10.19830206,194.18,194.14,0.12549]
[1735195896867,10.19830206,194.19,194.14,0.12549]
[1735195897071,10.19830206,194.19,194.14,20.12549]
[1735195898954,10.19830206,194.19,194.13,0.12549]
[1735195899342,10.19830206,194.19,194.16,0.12549]
[1735195901452,6.0372,194.24,194.16,0.12549]
[1735195901656,10.19830206,194.22,194.18,0.12549]
[1735195902066,10.19830206,194.22,194.18,20.12549]
[1735195902958,6.4237,194.28,194.18,20.12549]
[1735195903161,10.19830206,194.23,194.2,0.12549]
[1735195903543,10.19830206,194.24,194.2,0.12549]
[1735195903755,10.19830206,194.23,194.2,0.12549]
[1735195909169,10.19830206,194.22,194.18,20.0]
[1735195909378,10.19830206,194.21,194.18,20.0]
[1735195910037,10.19830206,194.21,194.19,0.12549]
[1735195910969,6.4237,194.28,194.19,0.12549]
[1735195910970,10.19830206,194.22,194.19,0.12549]
[1735195911985,10.19830206,194.23,194.19,0.12549]
[1735195912285,6.4237,194.28,194.21,0.12549]
[1735195912286,10.19830206,194.24,194.21,0.12549]
[1735195913466,10.19830206,194.24,194.2,0.12549]
[1735195914657,6.4237,194.28,194.2,20.12549]
[1735195915010,10.19830206,194.24,194.2,20.12549]
[1735195918473,10.19830206,194.26,194.2,20.12549]
[1735195918676,10.19830206,194.27,194.23,0.12549]
[1735195919958,10.19830206,194.27,194.23,20.12549]
[1735195920991,10.19830206,194.28,194.23,20.12549]
[1735195921292,10.19830206,194.3,194.25,20.12549]
[1735195923190,10.19830206,194.3,194.27,0.12549]
[1735195923391,10.19830206,194.29,194.27,0.12549]
[1735195924188,10.19830206,194.29,194.25,20.0]
[1735195924503,10.19830206,194.29,194.26,0.12549]
[1735195925285,10.19830206,194.29,194.24,0.12549]
[1735195925458,10.19830206,194.29,194.24,23.902374]
[1735195925663,10.19830206,194.29,194.28,0.12549]
[1735195926298,35.96269582,194.35,194.28,0.12549]
[1735195926481,10.19830206,194.34,194.28,20.12549]
[1735195926679,10.19830206,194.34,194.31,0.12549]
[1735195926883,12.8612,194.39,194.31,0.12549]
[1735195927187,10.19830206,194.34,194.31,0.12549]
[1735195931197,21.0147,194.42,194.31,20.12549]
[1735195931372,10.19830206,194.35,194.31,20.12549]
[1735195931698,10.19830206,194.36,194.33,0.12549]
[1735195933098,10.19830206,194.37,194.33,0.12549]
[1735195933597,10.19830206,194.35,194.33,0.12549]
[1735195933807,21.0147,194.42,194.33,0.12549]
[1735195933983,10.19830206,194.37,194.35,0.12549]
[1735195934185,10.19830206,194.36,194.35,0.12549]
[1735195934905,10.19830206,194.36,194.33,0.12549]
[1735195935206,10.19830206,194.34,194.27,21.5574]
[1735195935385,10.19830206,194.33,194.29,20.0]
[1735195935585,10.19830206,194.34,194.3,0.12549]
[1735195935968,12.8606,194.4,194.32,0.12549]
[1735195936171,10.19830206,194.35,194.32,0.12549]
[1735195936577,10.19830206,194.36,194.32,20.12549]
[1735195937103,10.19830206,194.35,194.32,20.12549]
[1735195937273,10.19830206,194.35,194.32,0.12549]
[1735195938182,53.65380824,194.4,194.33,0.12549]
[1735195938183,10.19830206,194.36,194.33,0.12549]
[1735195938479,8.1558,194.42,194.33,0.12549]
[1735195938674,10.19830206,194.37,194.33,0.12549]
[1735195938898,10.19830206,194.37,194.33,20.12549]
[1735195939204,10.19830206,194.36,194.33,0.12549]
[1735195940087,8.1558,194.42,194.33,0.12549]
[1735195940288,10.19830206,194.37,194.33,0.12549]
[1735195940704,10.19830206,194.37,194.32,20.0]
[1735195940705,10.19830206,194.36,194.3,0.12549]
[1735195941007,10.19830206,194.36,194.3,20.12549]
[1735195941193,10.19830206,194.35,194.31,20.0]
[1735195942318,10.19830206,194.36,194.32,0.12549]
[1735195945610,8.1558,194.42,194.36,0.12549]
[1735195945802,10.19830206,194.38,194.36,0.12549]
[1735195947217,10.19830206,194.39,194.36,0.12549]
[1735195948709,5.90139982,194.45,194.36,20.12549]
[1735195948936,10.19830206,194.41,194.38,0.12549]
[1735195949233,10.19830206,194.42,194.39,0.12549]
[1735195949804,10.19830206,194.45,194.41,0.12549]
[1735195950004,10.19830206,194.44,194.41,0.12549]
[1735195950518,10.19830206,194.44,194.39,20.0]
[1735195950835,10.19830206,194.44,194.4,20.12549]
[1735195951245,10.19830206,194.44,194.4,0.12549]
[1735195951811,10.19830206,194.44,194.4,20.12549]
[1735195952137,10.19830206,194.44,194.42,0.12549]
[1735195953536,42.34730824,194.5,194.42,0.12549]
[1735195953537,1.5541,194.5,194.42,0.12549]
[1735195953835,19.2537,194.52,194.45,0.12549]
[1735195954003,10.19830206,194.5,194.45,20.12549]
[1735195954836,16.68742476,194.56,194.47,20.12549]
[1735195955132,10.19830206,194.53,194.51,0.12549]
[1735195955438,10.19830206,194.52,194.45,23.776884]
[1735195955739,10.19830206,194.5,194.48,20.0]
[1735195956305,10.19830206,194.52,194.49,0.12549]
[1735195957012,42.34730824,194.6,194.49,0.12549]
[1735195957013,1.5541,194.6,194.49,0.12549]
[1735195957202,10.19830206,194.52,194.48,0.12549]
[1735195958335,10.19830206,194.52,194.48,20.12549]
[1735195959642,12.8482,194.58,194.48,43.902374]
[1735195959828,10.19830206,194.53,194.5,0.12549]
[1735195960141,10.19830206,194.53,194.51,20.0]
[1735195960349,10.19830206,194.52,194.5,0.12549]
[1735195960511,10.19830206,194.53,194.5,0.12549]
[1735195960715,10.19830206,194.53,194.49,20.12549]
[1735195961429,12.8482,194.58,194.49,20.12549]
[1735195961430,10.19830206,194.54,194.49,20.12549]
[1735195962146,10.19830206,194.54,194.51,0.12549]
[1735195962527,10.19830206,194.55,194.49,20.12549]
[1735195962709,10.19830206,194.55,194.52,0.12549]
[1735195963245,10.19830206,194.54,194.5,20.12549]
[1735195963426,1.5541,194.6,194.5,20.12549]
[1735195963628,1.5541,194.6,194.52,0.12549]
[1735195963934,10.19830206,194.54,194.52,0.12549]
[1735195964445,10.19830206,194.55,194.51,0.12549]
[1735195965529,10.19830206,194.55,194.49,0.12549]
[1735195965843,10.19830206,194.56,194.53,0.12549]
[1735195966345,6.4016,194.61,194.53,0.12549]
[1735195966546,10.19830206,194.56,194.53,0.12549]
[1735195966844,17.64016261,194.62,194.53,20.12549]
[1735195967049,10.19830206,194.57,194.53,20.12549]
[1735195967238,10.19830206,194.56,194.53,20.12549]
[1735195968253,10.19830206,194.55,194.52,20.0]
[1735195968458,10.19830206,194.55,194.5,21.6633]
[1735195969243,10.19830206,194.55,194.51,20.12549]
[1735195969543,40.79320824,194.6,194.51,20.12549]
[1735195969844,40.79320824,194.6,194.5,1.6633]
[1735195969845,10.19830206,194.56,194.53,0.12549]
[1735195972764,4.79426261,194.62,194.55,20.0]
[1735195973058,4.79426261,194.62,194.52,34.10067606]
[1735195973059,10.19830206,194.6,194.56,20.12549]
[1735195973422,10.19830206,194.59,194.55,20.0]
[1735195973645,10.19830206,194.59,194.56,0.12549]
[1735195973834,10.19830206,194.6,194.56,0.12549]
[1735195974240,10.19830206,194.6,194.56,20.12549]
[1735195974440,10.19830206,194.58,194.56,20.12549]
[1735195975157,10.19830206,194.58,194.56,0.12549]
[1735195975332,10.19830206,194.57,194.54,20.0]
[1735195975529,12.8455,194.63,194.52,20.0]
[1735195975530,10.19830206,194.56,194.52,20.0]
[1735195975861,10.19830206,194.57,194.53,0.12549]
[1735195976440,10.19830206,194.58,194.51,34.10067606]
[1735195976757,10.19830206,194.59,194.53,0.12549]
[1735195977334,10.19830206,194.59,194.56,0.12549]
[1735195978646,12.8455,194.63,194.56,20.12549]
[1735195978959,10.19830206,194.6,194.56,20.12549]
[1735195979331,3.70310858,194.65,194.58,0.12549]
[1735195979531,10.19830206,194.61,194.58,0.12549]
[1735195980358,10.19830206,194.6,194.52,10.96914762]
[1735195980664,10.19830206,194.58,194.54,20.0]
[1735195980842,10.19830206,194.58,194.55,0.12549]
[1735195981155,10.19830206,194.57,194.55,0.12549]
[1735195981338,10.19830206,194.58,194.55,0.12549]
[1735195982167,10.19830206,194.57,194.54,20.0]
[1735195982343,10.19830206,194.55,194.51,6.1749]
[1735195982663,10.19830206,194.54,194.5,1.6633]
[1735195983156,10.19830206,194.55,194.51,0.12549]
[1735195983744,10.19830206,194.54,194.51,20.12549]
[1735195984068,10.19830206,194.54,194.5,21.6633]
[1735195984228,40.79320824,194.6,194.5,20.0]
[1735195984229,10.19830206,194.52,194.5,20.0]
[1735195984432,10.19830206,194.53,194.5,20.0]
[1735195985538,10.19830206,194.52,194.5,20.0]
[1735195985743,10.19830206,194.52,194.47,30.92]
[1735195987243,10.19830206,194.53,194.48,0.12549]
[1735195987576,10.19830206,194.52,194.48,0.12549]
[1735195987939,10.19830206,194.52,194.47,0.12549]
[1735195988135,10.19830206,194.5,194.47,0.12549]
[1735195988339,10.19830206,194.49,194.41,12.48738195]
[1735195988540,10.19830206,194.49,194.42,0.12549]
[1735195988740,10.19830206,194.5,194.42,10.32379206]
[1735195989035,10.19830206,194.5,194.44,0.12549]
[1735195989253,10.19830206,194.48,194.41,1.5179]
[1735195989540,10.19830206,194.46,194.41,1.5179]
[1735195989853,10.19830206,194.46,194.42,0.12549]
[1735195990048,10.19830206,194.47,194.42,0.12549]
[1735195990258,10.19830206,194.46,194.42,0.12549]
[1735195990437,10.19830206,194.46,194.39,10.19830206]
[1735195990438,10.19830206,194.46,194.4,0.12549]
[1735195990855,10.19830206,194.46,194.42,0.12549]
[1735195993665,10.19830206,194.46,194.4,20.12549]
[1735195993847,10.19830206,194.46,194.42,20.0]
[1735195997070,10.19830206,194.46,194.4,0.12549]
[1735195997274,10.19830206,194.46,194.4,20.0]
[1735195997476,10.19830206,194.46,194.41,0.12549]
[1735196001474,19.3836,194.51,194.39,20.0]
[1735196001475,10.19830206,194.44,194.39,20.0]
[1735196001653,10.19830206,194.41,194.36,1.5179]
[1735196002178,10.19830206,194.41,194.37,0.12549]
[1735196005117,10.19830206,194.42,194.37,0.12549]
[1735196005578,1.5274,194.49,194.41,0.12549]
[1735196005887,10.19830206,194.46,194.41,0.12549]
[1735196006081,10.19830206,194.46,194.41,20.12549]
[1735196006658,10.19830206,194.44,194.41,20.12549]
[1735196008582,10.19830206,194.45,194.41,20.12549]
[1735196010980,10.19830206,194.46,194.41,20.12549]
[1735196011298,10.19830206,194.46,194.43,0.12549]
[1735196012699,10.19830206,194.47,194.43,0.12549]
[1735196012870,6.5307,194.51,194.43,20.12549]
[1735196013191,10.19830206,194.47,194.43,20.12549]
[1735196013386,10.19830206,194.48,194.43,20.12549]
[1735196014591,10.19830206,194.47,194.41,23.902374]
[1735196015691,10.19830206,194.5,194.45,0.12549]
[1735196016690,10.19830206,194.5,194.44,0.12549]
[1735196016986,10.19830206,194.49,194.44,0.12549]
[1735196017173,10.19830206,194.48,194.44,0.12549]
[1735196017786,10.19830206,194.47,194.44,0.12549]
[1735196018594,10.19830206,194.48,194.44,0.12549]
[1735196018893,10.19830206,194.49,194.44,20.12549]
[1735196019192,10.19830206,194.48,194.44,20.12549]
[1735196019791,10.19830206,194.49,194.44,20.12549]
[1735196020360,10.19830206,194.48,194.44,20.12549]
[1735196020888,14.3666,194.54,194.44,20.12549]
[1735196021093,10.19830206,194.48,194.44,20.12549]
[1735196022996,14.3666,194.54,194.44,20.12549]
[1735196023175,10.19830206,194.49,194.46,0.12549]
[1735196023989,10.19830206,194.48,194.44,20.0]
[1735196025181,10.19830206,194.48,194.45,0.12549]
[1735196025388,10.19830206,194.49,194.45,0.12549]
[1735196025689,10.19830206,194.49,194.45,20.12549]
[1735196026103,10.19830206,194.5,194.45,20.12549]
[1735196028502,10.19830206,194.5,194.44,20.12549]
[1735196029107,6.3351,194.56,194.47,0.12549]
[1735196029301,10.19830206,194.51,194.47,0.12549]
[1735196029884,10.19830206,194.54,194.51,0.12549]
[1735196030203,10.19830206,194.55,194.51,20.12549]
[1735196030414,10.19830206,194.52,194.49,20.0]
[1735196031004,10.19830206,194.53,194.5,0.12549]
[1735196033704,10.19830206,194.54,194.5,0.12549]
[1735196034206,10.19830206,194.53,194.5,0.12549]
[1735196035606,10.19830206,194.54,194.5,0.12549]
[1735196036215,10.19830206,194.55,194.5,0.12549]
[1735196037799,10.19830206,194.54,194.5,0.12549]
[1735196038378,10.19830206,194.55,194.5,0.12549]
[1735196039514,10.19830206,194.54,194.5,0.12549]
[1735196039722,10.19830206,194.52,194.45,30.088184]
[1735196039905,10.19830206,194.53,194.48,20.0]
[1735196040222,10.19830206,194.54,194.49,0.12549]
[1735196041601,10.19830206,194.54,194.49,20.12549]
[1735196041794,10.19830206,194.52,194.43,32.4244]
[1735196041989,10.19830206,194.52,194.47,20.0]
[1735196043017,12.8492,194.57,194.47,20.0]
[1735196043224,10.19830206,194.51,194.47,20.0]
[1735196043714,10.19830206,194.51,194.44,10.19830206]
[1735196043894,12.8492,194.57,194.45,0.12549]
[1735196044095,10.19830206,194.52,194.45,0.12549]
[1735196046617,10.19830206,194.52,194.45,34.10067606]
[1735196046826,10.19830206,194.54,194.47,0.12549]
[1735196047621,10.19830206,194.53,194.47,0.12549]
[1735196047817,10.19830206,194.52,194.46,20.0]
[1735196048197,10.19830206,194.52,194.47,20.0]
[1735196050529,10.19830206,194.5,194.43,1.5044]
[1735196050730,10.19830206,194.44,194.38,1.5617]
[1735196050891,10.19830206,194.42,194.38,1.5617]
[1735196051527,10.19830206,194.42,194.39,0.12549]
[1735196052210,10.19830206,194.41,194.36,8.03452083]
[1735196052523,10.19830206,194.41,194.36,0.12549]
[1735196052718,10.19830206,194.4,194.33,11.77610206]
[1735196052922,10.19830206,194.4,194.33,1.5778]
[1735196053125,10.19830206,194.4,194.34,0.12549]
[1735196053295,10.19830206,194.4,194.35,20.0]
[1735196053492,23.776884,194.47,194.36,20.12549]
[1735196053720,12.8553,194.48,194.37,20.0]
[1735196053721,10.19830206,194.42,194.37,20.0]
[1735196054300,10.19830206,194.42,194.35,0.12549]
[1735196054504,12.8553,194.48,194.35,0.12549]
[1735196054505,10.19830206,194.41,194.37,20.0]
[1735196055325,12.8553,194.48,194.37,20.0]
[1735196055530,10.19830206,194.41,194.37,20.0]
[1735196056718,10.19830206,194.4,194.35,20.0]
[1735196058021,10.19830206,194.4,194.36,0.12549]
[1735196058228,10.19830206,194.42,194.36,0.12549]
[1735196058534,10.19830206,194.43,194.36,0.12549]
[1735196058913,10.19830206,194.42,194.36,0.12549]
[1735196059319,40.79320824,194.5,194.36,10.32379206]
[1735196059525,21.0827,194.51,194.4,20.0]
[1735196059725,10.19830206,194.42,194.37,20.0]
[1735196059933,10.19830206,194.42,194.38,20.0]
[1735196060816,40.79320824,194.5,194.35,0.12549]
[1735196060817,10.19830206,194.41,194.35,0.12549]
[1735196061341,10.19830206,194.41,194.37,20.0]
[1735196063714,10.19830206,194.4,194.37,20.0]
[1735196063908,10.19830206,194.4,194.35,20.0]
[1735196064132,10.19830206,194.39,194.35,20.0]
[1735196065422,10.19830206,194.4,194.34,0.12549]
[1735196065743,10.19830206,194.4,194.35,20.0]
[1735196068839,10.19830206,194.39,194.35,20.0]
[1735196069241,10.19830206,194.4,194.35,20.0]
[1735196070048,20.0,194.46,194.36,0.12549]
[1735196070346,10.19830206,194.42,194.36,0.12549]
[1735196072352,10.19830206,194.41,194.36,0.12549]
[1735196073844,10.19830206,194.4,194.36,0.12549]
[1735196074749,10.19830206,194.4,194.36,20.12549]
[1735196075249,10.19830206,194.41,194.36,20.12549]
[1735196078047,12.856,194.47,194.36,0.12549]
[1735196078229,10.19830206,194.42,194.36,20.12549]
[1735196079650,10.19830206,194.42,194.37,20.0]
[1735196080235,10.19830206,194.43,194.36,20.12549]
[1735196080550,10.19830206,194.42,194.36,20.12549]
[1735196082335,10.19830206,194.42,194.37,20.0]
[1735196084657,12.856,194.47,194.38,0.12549]
[1735196084865,10.19830206,194.46,194.39,0.12549]
[1735196085667,10.19830206,194.45,194.4,0.12549]
[1735196086456,10.19830206,194.42,194.36,20.0]
[1735196086655,10.19830206,194.42,194.37,20.0]
[1735196090444,10.19830206,194.42,194.37,20.12549]
[1735196091166,10.19830206,194.42,194.33,1.5778]
[1735196091335,10.19830206,194.42,194.35,20.0]
[1735196091536,10.19830206,194.42,194.33,1.5778]
[1735196092143,10.19830206,194.42,194.34,0.12549]
[1735196093359,10.19830206,194.4,194.34,20.0]
[1735196094370,10.19830206,194.38,194.28,1.6189]
[1735196094570,10.19830206,194.34,194.28,1.6189]
[1735196095767,20.0,194.4,194.29,0.12549]
[1735196096074,10.19830206,194.35,194.29,0.12549]
[1735196099474,10.19830206,194.33,194.28,1.6189]
[1735196100577,10.19830206,194.31,194.24,10.19830206]
[1735196101675,10.19830206,194.32,194.25,10.19830206]
[1735196102083,10.19830206,194.32,194.24,10.32379206]
[1735196102399,10.19830206,194.31,194.24,0.12549]
[1735196103689,10.19830206,194.3,194.24,0.12549]
[1735196104288,12.8615,194.38,194.27,0.12549]
[1735196104501,10.19830206,194.34,194.27,0.12549]
[1735196104993,10.19830206,194.33,194.26,0.12549]
[1735196105167,10.19830206,194.32,194.28,20.0]
[1735196105356,10.19830206,194.31,194.26,0.12549]
[1735196105572,10.19830206,194.32,194.27,20.0]
[1735196105789,10.19830206,194.32,194.28,0.12549]
[1735196106099,10.19830206,194.34,194.28,0.12549]
[1735196106460,10.19830206,194.33,194.26,0.12549]
[1735196106881,10.19830206,194.32,194.26,0.12549]
[1735196107084,10.19830206,194.32,194.26,20.12549]
[1735196109099,10.19830206,194.34,194.28,0.12549]
[1735196112591,10.19830206,194.35,194.28,0.12549]
[1735196114603,10.19830206,194.37,194.3,0.12549]
[1735196114911,10.19830206,194.36,194.3,1.70559]
[1735196118504,20.8688,194.42,194.3,1.70559]
[1735196118705,10.19830206,194.36,194.3,1.70559]
[1735196121117,12.8588,194.42,194.33,10.19830206]
[1735196121285,12.8588,194.42,194.35,10.32379206]
[1735196121286,10.19830206,194.42,194.35,10.32379206]
[1735196121816,10.19830206,194.44,194.37,1.78369]
[1735196122002,10.19830206,194.43,194.37,1.78369]
[1735196125731,10.19830206,194.44,194.37,11.98199206]
[1735196125899,12.8549,194.48,194.39,10.19830206]
[1735196126100,10.19830206,194.44,194.37,11.98199206]
[1735196126597,10.19830206,194.44,194.37,1.78369]
[1735196127106,10.19830206,194.43,194.37,1.78369]
[1735196127512,10.19830206,194.44,194.37,1.78369]
[1735196129219,12.8549,194.48,194.37,1.78369]